Cogmind - Beta 9.1 @@@ ROGUE MODE // 2019.11.05 @ 21:15:28 Player: Korywon Result: Destroyed by G-47 Trooper with Particle Gun Performance ------------- Evolutions (2) 1000 Regions Visited (3) 600 Robots Destroyed (39) 195 Value Destroyed (936) 936 Prototype IDs (0) 0 Alien Tech Used (0) 0 Bonus (0) 0 TOTAL SCORE: 2731 Bonus ------- None Cogmind --------- Core Integrity 0/550 Matter 450/450 Energy 99/100 System Corruption 7% Temperature Cool (9) Location -8/Materials Parts ------- Power (2) Propulsion (3) Utility (3) Large Storage Unit Large Storage Unit Large Matter Pod Weapon (3) Inventory (16) Medium Storage Unit Peak State ------------ Power Ion Engine Ion Engine Propulsion Aluminum Leg Aluminum Leg Aluminum Leg Utility Heat Sink Large Storage Unit Medium Armor Plating Weapon Beam Rifle Beam Rifle Light EM Pulse Cannon Inventory Light Ion Engine Medium Storage Unit Large Storage Unit Large Matter Pod Medium Armor Plating Beam Rifle [Rating: 15] Favorites ----------- Power Ion Engine Engine Ion Engine Propulsion Aluminum Leg Leg Aluminum Leg Utility Medium Armor Plating Device Heat Sink Storage Small Storage Unit Protection Medium Armor Plating Weapon Light EM Pulse Cannon Energy Gun Beam Rifle Energy Cannon Light EM Pulse Cannon Build | -11 -10 -9 -8 ------- Run | Scr Mat Mat Mat Slots Evolved 4 | . . 2 2 Power 1 | . . 1 . Propulsion 1 | . . . 1 Utility 1 | . . 1 . Weapon 1 | . . . 1 Parts Attached 35 | 6 11 11 7 Power 4 | 1 . 2 1 Engine 4 | 1 . 2 1 Core . | . . . . Reactor . | . . . . Propulsion 7 | 2 2 2 1 Treads . | . . . . Leg 7 | 2 2 2 1 Wheel . | . . . . Hover . | . . . . Flight . | . . . . Utility 10 | 1 1 5 3 Device 1 | . . 1 . Storage 6 | 1 1 2 2 Processor . | . . . . Hackware . | . . . . Protection 3 | . . 2 1 Artifact . | . . . . Weapon 14 | 2 8 2 2 Energy Gun 7 | 2 2 1 2 Energy Cannon 7 | . 6 1 . Ballistic Gun . | . . . . Ballistic Cannon . | . . . . Launcher . | . . . . Special Weapon . | . . . . Impact Weapon . | . . . . Slashing Weapon . | . . . . Piercing Weapon . | . . . . Special Melee Weapon . | . . . . Unidentified Prototypes . | . . . . Parts Lost 17 | . 1 3 13 Power 3 | . . . 3 Propulsion 5 | . . 2 3 Utility 3 | . . . 3 Weapon 6 | . 1 1 4 Highest Loss Streak 7 | . 1 2 7 Average Slot Usage (%) 92 | . 98 97 67 Engine 16 | . 14 22 9 Leg 22 | . 27 21 16 Device 3 | . . 5 3 Storage 18 | . 27 12 13 Protection 7 | . . 13 6 Energy Gun 12 | . 14 11 12 Energy Cannon 11 | . 13 10 6 Naked Turns . | . . . . Heaviest Build 54 | 13 20 41 54 Greatest Support 30 | 20 20 20 30 Greatest Overweight (x) 11 | 2 1 3 11 Average Overweight (x) . | . . 1 2 Largest Inventory Capacity 16 | 6 6 10 16 Average Capacity 7 | 5 6 7 12 Most Carried 8 | 6 6 8 7 Average Carried 4 | 2 4 5 3 Final Capacity 16 | 6 6 10 16 Final Carried 8 | 2 5 8 1 Class Distribution -------------------- 54% | Mutant 40% | Scavenger-Mutant 5% | Scavenger-Tank Dominant Class ---------------- Mutant | -10/Materials Scavenger-Mutant | -9/Materials Mutant | -8/Materials Resources | -11 -10 -9 -8 ----------- Run | Scr Mat Mat Mat Matter Collected 670 | 207 291 142 30 Remotely . | . . . . Salvage Created 1561 | . 678 728 155 Parts 71 | . 40 25 6 Haulers Intercepted . | . . . . Recyclers Shooed 7 | . 3 3 1 Parts Field Recycled . | . . . . Retrieved Matter . | . . . . Parts Self-Destructed . | . . . . Prevented . | . . . . Kills | -11 -10 -9 -8 ------- Run | Scr Mat Mat Mat Combat Hostiles Destroyed 23 | . 11 10 2 Guns 6 | . 4 2 . Cannons 13 | . 6 6 1 AOE 4 | . 1 2 1 Classes Destroyed 9 | . 7 1 1 Worker 3 | . 3 . . Builder 3 | . 1 1 1 Recycler 4 | . 1 3 . Operator 1 | . 1 . . Watcher 5 | . 3 1 1 Swarmer 3 | . 3 . . Grunt 18 | . 8 9 1 Brawler 1 | . . . 1 Sentry 1 | . . 1 . Best Kill Streak 8 | . 8 5 3 Combat Bots Only 4 | . 4 3 1 Max Kills in Single Turn 3 | . 2 2 3 Gunslinging . | . . . . Exploded 1 | . 1 1 1 Melee . | . . . . Uniques/NPCs Destroyed . | . . . . Combat | -11 -10 -9 -8 -------- Run | Scr Mat Mat Mat Damage Taken 2622 | . 469 454 1699 Core 692 | . 102 28 562 Absorbed by Shields . | . . . . Core Remaining (%) 84 | 100 59 93 . Volleys Fired 99 | . 45 37 17 Largest 3 | . 2 2 3 Hottest 168 | . 112 112 168 Shots Fired 189 | . 82 73 34 Gun 99 | . 42 36 21 Cannon 90 | . 40 37 13 Launcher . | . . . . Special . | . . . . Kinetic . | . . . . Thermal 86 | . 29 36 21 Explosive . | . . . . Electromagnetic 103 | . 53 37 13 Robot Hit Streak 11 | . 8 7 11 Robot Miss Streak 5 | . 5 5 2 Penetration Max . | . . . . Secondary Targets . | . . . . Shots Hit Robots 115 | . 44 48 23 Core Hits 54 | . 24 22 8 Critical Hits . | . . . . Critical Kills . | . . . . Critical Parts Destroyed . | . . . . Melee Attacks . | . . . . Impact . | . . . . Slashing . | . . . . Piercing . | . . . . Sneak Attacks . | . . . . Combat Hostiles . | . . . . Follow-up Attacks . | . . . . Damage Inflicted 2871 | . 989 1261 621 Guns 861 | . 340 317 204 Cannons 1365 | . 560 549 256 Explosions 645 | . 89 395 161 Melee . | . . . . Ramming . | . . . . Kinetic . | . . . . Thermal 1404 | . 327 712 365 Explosive . | . . . . Electromagnetic 1467 | . 662 549 256 Impact . | . . . . Slashing . | . . . . Piercing . | . . . . Highest Corruption 7 | . . . 7 Average Corruption 6 | . . . 6 Corruption Purged . | . . . . Effects 5 | . . . 5 Message Errors 1 | . . . 1 Heat Flow Errors 1 | . . . 1 Data Loss (minor) 2 | . . . 2 Targeting Errors 1 | . . . 1 Overload Shots . | . . . . Overflow Damage 168 | . 37 122 9 Projectiles 91 | . 37 45 9 Explosions 77 | . . 77 . Melee . | . . . . Knockbacks . | . . . . Impact . | . . . . Kinetic . | . . . . Secondary . | . . . . Self-Inflicted Damage 71 | . . 39 32 Shots 2 | . . 1 1 Rammed . | . . . . Targets Rammed . | . . . . Kicked . | . . . . Crushed . | . . . . Highest Temperature 531 | . 308 531 373 Average Temperature 160 | . 103 211 178 Received Heat Transfer 1152 | . 126 180 846 Effects 22 | . 1 15 6 Shutdowns 10 | . 1 9 . Energy Bleed 2 | . . 1 1 Interference 5 | . . . 5 Matter Decay 2 | . . 2 . Damage (minor) 2 | . . 2 . Damage (major) 1 | . . 1 . Siege Activations . | . . . . Robots Corrupted 1 | . 1 . . Combat Hostiles . | . . . . Parts Fried 7 | . 4 2 1 Impact Corruptions . | . . . . Robots Melted . | . . . . Combat Hostiles . | . . . . Parts Melted 3 | . 2 1 . Heat Transferred 2751 | . 903 1180 668 Parts Sabotaged . | . . . . Parts Stolen . | . . . . Parts Stripped . | . . . . Power Chain Reactions 6 | . 1 4 1 Missiles Intercepted . | . . . . Alert | -11 -10 -9 -8 ------- Run | Scr Mat Mat Mat Peak Influence 334 | . 334 265 91 Average Influence 123 | . 154 135 63 Maximum Alert Level 1 | . 1 1 . Low Security (%) 77 | . . . . Level 1 22 | . . . . Level 2 . | . . . . Level 3 . | . . . . Level 4 . | . . . . Level 5 . | . . . . High Security . | . . . . Max Security . | . . . . Squads Dispatched 6 | . 2 3 1 Investigation 1 | . . 1 . Extermination . | . . . . Reinforcement 5 | . 2 2 1 Assault . | . . . . Garrison . | . . . . Intercept . | . . . . Construction Impeded 1 | . . . 1 Haulers Reinforced . | . . . . Stealth | -11 -10 -9 -8 --------- Run | Scr Mat Mat Mat Distress Signals 6 | . 4 2 . Communications Jammed . | . . . . Distress Signals . | . . . . Times Spotted 51 | . 23 18 10 Peak Tracking Total 6 | . 6 5 5 Tactical Retreats 5 | . 1 2 2 Traps | -11 -10 -9 -8 ------- Run | Scr Mat Mat Mat Traps Triggered 1 | . . 1 . Indirectly . | . . . . Trap Hack Attempts . | . . . . Triggered . | . . . . Disarmed . | . . . . Reprogrammed . | . . . . Reused . | . . . . Traps Extracted . | . . . . Installed . | . . . . Triggered . | . . . . Machines | -11 -10 -9 -8 ---------- Run | Scr Mat Mat Mat Machines Disabled 4 | . 1 3 . Max in Single Turn 1 | . 1 1 . Machines Sabotaged . | . . . . Garrisons Compromised . | . . . . Overloaded Fab Kills . | . . . . Fab Network Shutdowns . | . . . . Hacking | -11 -10 -9 -8 --------- Run | Scr Mat Mat Mat Machines Accessed . | . . . . Terminals . | . . . . Fabricators . | . . . . Repair Stations . | . . . . Recycling Units . | . . . . Scanalyzers . | . . . . Garrison Access . | . . . . Total Hacks . | . . . . Successful . | . . . . Failed . | . . . . Catastrophic . | . . . . Database Lockouts . | . . . . Manual . | . . . . Terminals . | . . . . Fabricators . | . . . . Repair Stations . | . . . . Recycling Units . | . . . . Scanalyzers . | . . . . Garrison Access . | . . . . Terminal Hacks . | . . . . Fabricator Hacks . | . . . . Repair Station Hacks . | . . . . Recycling Unit Hacks . | . . . . Scanalyzer . | . . . . Garrison Access Hacks . | . . . . Unauthorized Hacks . | . . . . Terminals . | . . . . Fabricators . | . . . . Repair Stations . | . . . . Recycling Units . | . . . . Scanalyzers . | . . . . Garrison Access . | . . . . Data Cores Recovered . | . . . . Used . | . . . . Hacking Detections . | . . . . Full Trace Events . | . . . . Feedback Events . | . . . . Feedback Blocked . | . . . . Robot Schematics Acquired . | . . . . Robots Built . | . . . . Matter . | . . . . Time . | . . . . Total Robot Build Rating . | . . . . Part Schematics Acquired . | . . . . Parts Built . | . . . . Matter . | . . . . Time . | . . . . Total Part Build Rating . | . . . . Parts Repaired . | . . . . Time . | . . . . Parts Recycled . | . . . . Recycled Matter . | . . . . Retrieved Matter . | . . . . Retrieved Components . | . . . . Parts Scanalyzed . | . . . . Part Schematics Acquired . | . . . . Parts Damaged . | . . . . Bothacking | -11 -10 -9 -8 ------------ Run | Scr Mat Mat Mat Used RIF Installer . | . . . . Robots Hacked . | . . . . Non-combat . | . . . . Combat . | . . . . Robot Hacks Applied . | . . . . Relay Couplers Released . | . . . . Robots Rewired . | . . . . Allies Hacked . | . . . . Hacks Repelled . | . . . . Allies | -11 -10 -9 -8 -------- Run | Scr Mat Mat Mat Total Allies . | . . . . Largest Group . | . . . . Highest-Rated Group . | . . . . Highest-Rated Ally . | . . . . Total Orders . | . . . . Ally Attacks . | . . . . Total Damage . | . . . . Kills . | . . . . Allies Corrupted . | . . . . Allies Melted . | . . . . Intel | -11 -10 -9 -8 ------- Run | Scr Mat Mat Mat Robot Analysis Total . | . . . . Derelict Logs Recovered . | . . . . Drone Launches . | . . . . Drone Recoveries . | . . . . Exploration | -11 -10 -9 -8 ------------- Run | Scr Mat Mat Mat Turns Passed 1289 | 72 473 548 196 Spaces Moved 642 | 50 267 256 69 Core 42 | 33 . . 9 Treads . | . . . . Legs 600 | 17 267 256 60 Wheels . | . . . . Hover . | . . . . Flight . | . . . . Fastest Speed 50 | 50 120 150 150 Average Speed 145 | 116 120 157 215 Slowest Speed 600 | 150 150 210 600 Overloaded Moves . | . . . . Propulsion Burnouts . | . . . . Robots Hopped . | . . . . Cave-ins Triggered . | . . . . Exploration Rate (%) 17 | 5 40 20 6 Regions Visited 3 Branch Regions . Pre-discovered Areas . | . . . . Known Exits Taken . | . . . . Unknown Exits Taken 3 | 1 1 1 . Scrap Searched . | . . . . Spaces Dug . | . . . . Terrain Destroyed 22 | . 4 16 2 Melee . | . . . . Projectile . | . . . . AOE 22 | . 4 16 2 Actions | -11 -10 -9 -8 --------- Run | Scr Mat Mat Mat Total 835 | 63 346 333 93 Wait 3 | . . 3 . Move 639 | 49 266 255 69 Hop . | . . . . Pick Up 35 | 8 11 16 . Fast Attach . | . . . . Attach 33 | 6 11 9 7 Detach 10 | . 7 3 . Swap 2 | . . 2 . Drop 14 | . 6 8 . Fire 99 | . 45 37 17 Melee . | . . . . Ram . | . . . . Kick . | . . . . Crush . | . . . . Escape Stasis . | . . . . Rewire . | . . . . Trap . | . . . . Miscellaneous . | . . . . Route ------- -11/Scrapyard -10/Materials -9/Materials -8/Materials History --------- Turn | Location | Event 24 | -11/Scrapyard | Discovered new exit (range 14) 73 | -11/Scrapyard | Entered Materials 309 | -10/Materials | Build established: Mutant 503 | -10/Materials | Discovered new exit (range 15) 546 | -10/Materials | Entered another Materials area 546 | -9/Materials | Evolved 2 slots: Power x1, Utility x1 926 | -9/Materials | Discovered new exit (range 13) 1094 | -9/Materials | Entered another Materials area 1094 | -8/Materials | Evolved 2 slots: Propulsion x1, Weapon x1 1207 | -8/Materials | Lost 6 parts (2p1n2u1w) 1261 | -8/Materials | Core integrity fell below 50% 1275 | -8/Materials | Lost 7 parts (1p2n1u3w) 1279 | -8/Materials | Core integrity fell below 20% 1290 | -8/Materials | Destroyed by G-47 Trooper with Particle Gun Last Messages --------------- 01198_ R-06 Scavenger collects Wheel. 01200_ U-05 Engineer lays Concrete. 01203_ U-05 Engineer builds a Wall. 01204_ R-06 Scavenger collects Lgt. Treads. 01206_ U-05 Engineer lays Concrete. 01207_ U-05 Engineer builds a Wall. 01207_ U-05 Engineer lays Concrete. 01216_ Ion Engine destroyed. 01224_ Aluminum Leg destroyed. 01227_ Beam Rifle destroyed. 01230_ Lgt. EM Pulse Cannon destroyed. 01234_ Beam Rifle destroyed. 01241_ Med. Armor Plating destroyed. 01244_ System corrupted: Heat flow error (+171). 01244_ Aluminum Leg destroyed. 01267_ R-06 Scavenger destroyed. 01272_ K-01 Serf collects debris. 01275_ System corrupted: Component data lost. 01278_ Acquired 10 matter. 01278_ K-01 Serf collects debris. Map ----- +----------------------------------------------------+ | | | | | | | | | | | | | ?????????????????????????????????????????????????? | | ?????????????????????????????????????????????????? | | ?????????????????????????????????????????????????? | | ?????????????????????????????????????????????????? | | ?????????????????????????????????????????????????? | | ?????????????????????????????????????????????????? | | ??????????????????????##########?????????????????? | | ??????????????????##### #?????????????????? | | ?????????# ###### #""" #?????????????????? | | ??? #""" #?????????????????? | | ?????????# ###### #""" #?????????????????? | | ??????????????????# + #?????????????????? | | ??????????????????# #""" #?????????????????? | | ??????????????????# #""" #?????????????????? | | ??????????????????# #""" #?????????????????? | | ??????????????????# # #?????????????????? | | ??????????????????# ##########?????????????????? | | ??????????????????# *###????????????????????????? | | ??????????????????# !%################???????????? | | ??????????????????#k !g %@ ????????? | | ??????????????????# gg ????????? | | ??????????????????# g ????????? | | ??????????????????######## ###########?????????? | | ?????????????????????????? #???????????????????? | | ?????????????????????????? #???????????????????? | | ?????????????????????????? #???????????????????? | | ?????????????????????????? #???????????????????? | | ?????????????????????????? +???????????????????? | | ??????????????????????????? %#???????????????????? | | ??????????????????????????? #???????????????????? | | ??????????????????????????? #???????????????????? | | ??????????????????????????? #???????????????????? | | ??????????????????????????? #???????????????????? | | ???????????????????????????? ???????????????????? | | ????????????????????????????? ???????????????????? | | ?????????????????????????????????????????????????? | | ?????????????????????????????????????????????????? | | ?????????????????????????????????????????????????? | | ?????????????????????????????????????????????????? | | ?????????????????????????????????????????????????? | | ?????????????????????????????????????????????????? | | ?????????????????????????????????????????????????? | | ?????????????????????????????????????????????????? | | ?????????????????????????????????????????????????? | +----------------------------------------------------+ Best States ------------- Heat Dissipation 41 Energy Generation 15 Energy Capacity 400 Matter Stores 450 Matter Capacity 450 Sight Range 16 Terrain Scan Density 10 Armor Coverage 450 Evasion (%) 40 Item Schematics ----------------- None Robot Schematics ------------------ None Fabricated ------------ Nothing Alien Tech Used ----------------- None Achievements -------------- None Challenges ------------ None Game ------ Seed SurveybotLinearChip Manual? 0 Play Time 00:18:23 Cumulative 50.8 hours Start 2019.11.05 @ 20:53:44 End 2019.11.05 @ 21:15:28 Sessions 1 Manual Loads 0 Difficulty Rogue Special Mode None Game No. 35 Rogue 35 Adventurer 0 Explorer 0 Win Type - Total 0 Types 0/0/0/0/0/0/0 Lore% 15 Gallery% 24 Achievement% 20 Wizard Run 0 Options --------- ASCII 0 Keyboard 0 Movement Arrows Keybinds 0 Fullscreen 1 Font 18/X11 Map View 76x50 Tactical HUD 1 Map Filters NONE Filters NONE Steam 1 RUN: 5bfd5f5f-58c6-42e1-a4f0-add0758e3d1c